fUSD/lending_fUSD_20260614
["ID","MTS","AMOUNT","RATE_DAILY","PERIOD"]
[424992137,1781385043000,-2410.69,0.00027521,120]
[424992136,1781385043000,-500.0,0.000275,7]
[424992135,1781385043000,-284.0,0.00027464,5]
[424992140,1781385043000,-3605.42,0.0002755,30]
[424992138,1781385043000,-151.0,0.00027521,7]
[424992142,1781385043000,-349.74,0.0002755,2]
[424992143,1781385043000,-4268.37,0.0002755,30]
[424992144,1781385043000,-2197.36,0.00027559,30]
[424992141,1781385043000,-326.56,0.0002755,2]
[424992097,1781385043000,-359.8651,0.00027397,2]
[424992133,1781385043000,-400.7,0.000274,2]
[424992121,1781385043000,-16979.82,0.00027397,10]
[424992130,1781385043000,-1729.60751652,0.00027397,2]
[424992119,1781385043000,-162.986725,0.00027397,2]
[424992095,1781385043000,-359.8651,0.00027397,2]
[424992122,1781385043000,-162.986725,0.00027397,2]
[424992093,1781385043000,-359.8651,0.00027397,2]
[424992099,1781385043000,-359.8651,0.00027397,2]
[424992098,1781385043000,-359.8651,0.00027397,2]
[424992100,1781385043000,-151.0,0.00027397,2]
[424992104,1781385043000,-173.375174,0.00027397,2]
[424992101,1781385043000,-151.0,0.00027397,2]
[424992107,1781385043000,-173.375174,0.00027397,2]
[424992105,1781385043000,-173.375174,0.00027397,2]
[424992106,1781385043000,-173.375174,0.00027397,2]
[424992103,1781385043000,-173.375174,0.00027397,2]
[424992102,1781385043000,-173.375174,0.00027397,2]
[424992113,1781385043000,-2559.842455,0.00027397,2]
[424992109,1781385043000,-173.375174,0.00027397,2]
[424992118,1781385043000,-2559.842455,0.00027397,2]
[424992108,1781385043000,-173.375174,0.00027397,2]
[424992112,1781385043000,-2559.842455,0.00027397,2]
[424992111,1781385043000,-2559.842455,0.00027397,2]
[424992110,1781385043000,-300.0,0.00027397,2]
[424992114,1781385043000,-2559.842455,0.00027397,2]
[424992115,1781385043000,-2559.842455,0.00027397,2]
[424992117,1781385043000,-2559.842455,0.00027397,2]
[424992116,1781385043000,-2559.842455,0.00027397,2]
[424992184,1781385044000,-2559.842455,0.00027744,7]
[424992176,1781385044000,-359.8651,0.00027744,7]
[424992183,1781385044000,-2559.842455,0.00027744,7]
[424992177,1781385044000,-151.0,0.00027744,7]
[424992170,1781385044000,-7473.28978642,0.00027744,14]
[424992175,1781385044000,-359.8651,0.00027744,7]
[424992169,1781385044000,-500.0,0.00027738,15]
[424992168,1781385044000,-400.7,0.00027734,2]
[424992178,1781385044000,-173.375174,0.00027744,7]
[424992179,1781385044000,-173.375174,0.00027744,7]
[424992185,1781385044000,-2559.842455,0.00027744,7]
[424992195,1781385044000,-326.56,0.00027855,7]
[424992180,1781385044000,-173.375174,0.00027744,7]
[424992182,1781385044000,-151.0,0.00027744,7]
[424992181,1781385044000,-173.375174,0.00027744,7]
[424992188,1781385044000,-326.56,0.00027763,7]
[424992187,1781385044000,-219.0,0.00027746,2]
[424992193,1781385044000,-326.56,0.00027824,2]
[424992192,1781385044000,-349.74,0.00027794,30]
[424992190,1781385044000,-674.75321017,0.00027766,2]
[424992189,1781385044000,-349.74,0.00027763,7]
[424992194,1781385044000,-349.74,0.00027824,2]
[424992167,1781385044000,-349.74,0.00027733,2]
[424992186,1781385044000,-2559.842455,0.00027744,7]
[424992171,1781385044000,-11179.59457239,0.00027744,14]
[424992148,1781385044000,-326.56,0.00027611,30]
[424992165,1781385044000,-4268.37,0.00027732,2]
[424992191,1781385044000,-326.56,0.00027794,30]
[424992147,1781385044000,-349.74,0.0002758,7]
[424992145,1781385044000,-4268.37,0.00027572,7]
[424992146,1781385044000,-326.56,0.0002758,7]
[424992149,1781385044000,-349.74,0.00027611,30]
[424992150,1781385044000,-185.12,0.00027618,2]
[424992151,1781385044000,-326.56,0.00027641,2]
[424992153,1781385044000,-326.56,0.00027672,7]
[424992157,1781385044000,-349.74,0.00027702,30]
[424992156,1781385044000,-326.56,0.00027702,30]
[424992154,1781385044000,-349.74,0.00027672,7]
[424992155,1781385044000,-163.0,0.00027692,10]
[424992152,1781385044000,-349.74,0.00027641,2]
[424992158,1781385044000,-320.14,0.00027704,2]
[424992161,1781385044000,-162.986725,0.00027719,7]
[424992162,1781385044000,-162.986725,0.00027719,7]
[424992160,1781385044000,-2197.36,0.00027719,7]
[424992159,1781385044000,-3605.42,0.00027711,7]
[424992164,1781385044000,-162.986725,0.00027719,7]
[424992173,1781385044000,-359.8651,0.00027744,7]
[424992174,1781385044000,-359.8651,0.00027744,7]
[424992172,1781385044000,-15126.3882,0.00027744,14]
[424992163,1781385044000,-162.986725,0.00027719,7]
[424992166,1781385044000,-326.56,0.00027733,2]
[424992197,1781385044000,-3605.42,0.00027872,2]
[424992219,1781385044000,-2559.842455,0.0002799,7]
[424992198,1781385044000,-2197.36,0.00027879,2]
[424992226,1781385044000,-400.7,0.00028023,2]
[424992227,1781385044000,-3605.42,0.00028033,30]
[424992230,1781385044000,-2197.36,0.00028039,30]
[424992231,1781385044000,-173.375174,0.00028039,7]
[424992229,1781385044000,-349.74,0.00028038,7]
[424992233,1781385044000,-173.375174,0.00028039,7]
[424992235,1781385044000,-164.73735725,0.00028046,14]
[424992234,1781385044000,-173.375174,0.00028039,7]
[424992228,1781385044000,-326.56,0.00028038,7]
[424992232,1781385044000,-173.375174,0.00028039,7]
[424992237,1781385044000,-4268.36,0.00028053,7]
[424992238,1781385044000,-326.56,0.00028068,30]
[424992242,1781385044000,-326.56,0.00028099,2]
[424992236,1781385044000,-4268.37,0.00028053,7]
[424992240,1781385044000,-224.02349031,0.00028076,2]
[424992239,1781385044000,-349.74,0.00028068,30]
[424992244,1781385044000,-326.62,0.0002813,7]
[424992243,1781385044000,-349.74,0.00028099,2]
[424992245,1781385044000,-349.75,0.0002813,7]
[424992246,1781385044000,-2546.44485874,0.00028167,2]
[424992247,1781385044000,-350.0,0.00028169,2]
[424992248,1781385044000,-158.29196,0.00028186,7]
[424992196,1781385044000,-349.74,0.00027855,7]
[424992218,1781385044000,-2559.842455,0.0002799,7]
[424992221,1781385044000,-601.0,0.00027991,30]
[424992241,1781385044000,-2410.69,0.00028096,120]
[424992223,1781385044000,-326.56,0.00028007,2]
[424992215,1781385044000,-19898.2241859,0.0002799,2]
[424992199,1781385044000,-326.56,0.00027885,30]
[424992201,1781385044000,-4268.37,0.00027892,30]
[424992200,1781385044000,-349.74,0.00027885,30]
[424992203,1781385044000,-162.986725,0.00027893,7]
[424992204,1781385044000,-162.986725,0.00027893,7]
[424992205,1781385044000,-162.986725,0.00027893,7]
[424992207,1781385044000,-150.70288808,0.0002791,2]
[424992208,1781385044000,-326.56,0.00027916,2]
[424992206,1781385044000,-2546.44485874,0.000279,2]
[424992209,1781385044000,-349.74,0.00027916,2]
[424992202,1781385044000,-434.0,0.00027893,10]
[424992211,1781385044000,-349.74,0.00027946,7]
[424992225,1781385044000,-1810.70027234,0.00028017,2]
[424992210,1781385044000,-326.56,0.00027946,7]
[424992224,1781385044000,-349.74,0.00028007,2]
[424992217,1781385044000,-2559.842455,0.0002799,7]
[424992249,1781385044000,-11432.0,0.00028186,10]
[424992222,1781385044000,-200.0,0.00028,2]
[424992220,1781385044000,-2000.0,0.00027991,30]
[424992216,1781385044000,-2559.842455,0.0002799,7]
[424992212,1781385044000,-150.0,0.00027973,2]
[424992214,1781385044000,-349.74,0.00027977,30]
[424992213,1781385044000,-326.56,0.00027977,30]
[424992270,1781385045000,-500.0,0.00028356,60]
[424992271,1781385045000,-2197.36,0.00028359,2]
[424992269,1781385045000,-3605.42,0.00028355,2]
[424992268,1781385045000,-175.13,0.0002831,2]
[424992272,1781385045000,-173.375174,0.00028359,7]
[424992275,1781385045000,-173.375166,0.00028359,7]
[424992276,1781385045000,-4268.37,0.00028373,30]
[424992277,1781385045000,-227.52691364,0.0002839,7]
[424992274,1781385045000,-173.375174,0.00028359,7]
[424992273,1781385045000,-173.375174,0.00028359,7]
[424992280,1781385045000,-176.79963027,0.0002839,7]
[424992264,1781385045000,-2559.842455,0.0002829,7]
[424992279,1781385045000,-316.36101528,0.0002839,7]
[424992278,1781385045000,-203.58276119,0.0002839,7]
[424992267,1781385045000,-368.27421066,0.000283,2]
[424992253,1781385045000,-3605.42,0.00028194,7]
[424992266,1781385045000,-2559.842455,0.0002829,7]
[424992281,1781385045000,-215.27421524,0.0002839,7]
[424992250,1781385045000,-162.986725,0.00028186,7]
[424992252,1781385045000,-162.986725,0.00028186,7]
[424992255,1781385045000,-359.8651,0.00028194,7]
[424992251,1781385045000,-162.986725,0.00028186,7]
[424992256,1781385045000,-359.8651,0.00028194,7]
[424992260,1781385045000,-844.1269445,0.00028259,2]
[424992254,1781385045000,-359.8651,0.00028194,7]
[424992263,1781385045000,-2559.842455,0.0002829,7]
[424992259,1781385045000,-4268.37,0.00028213,2]
[424992261,1781385045000,-151.0,0.00028267,2]
[424992262,1781385045000,-10000.0,0.0002829,2]
[424992258,1781385045000,-2197.36,0.00028199,7]
[424992265,1781385045000,-2559.842455,0.0002829,7]
[424992257,1781385045000,-359.8651,0.00028194,7]
[424992288,1781385045000,-213.8671025,0.0002839,5]
[424992303,1781385045000,-195.38905797,0.0002839,7]
[424992282,1781385045000,-358.45038684,0.0002839,7]
[424992304,1781385045000,-312.72603989,0.00028391,7]
[424992307,1781385045000,-80630.4995107,0.00028396,6]
[424992310,1781385045000,-57252.42799097,0.00028396,6]
[424992305,1781385045000,-356.00415387,0.00028391,7]
[424992312,1781385045000,-183.0,0.00022,2]
[424992315,1781385045000,-162.986725,0.00027893,7]
[424992300,1781385045000,-210.00089807,0.0002839,7]
[424992319,1781385045000,-1277.64411151,0.00028396,6]
[424992317,1781385045000,-162.986733,0.00028186,7]
[424992318,1781385045000,-26995.56760579,0.00028396,6]
[424992285,1781385045000,-189.06228609,0.0002839,7]
[424992313,1781385045000,-183.0,0.00023,2]
[424992320,1781385045000,-934.0,0.00025392,2]
[424992321,1781385045000,-932.01994501,0.00028396,6]
[424992316,1781385045000,-1093.0,0.00027977,10]
[424992299,1781385045000,-330.89575737,0.0002839,7]
[424992314,1781385045000,-183.0,0.00024,2]
[424992297,1781385045000,-171.5757882,0.0002839,7]
[424992283,1781385045000,-359.34605208,0.0002839,7]
[424992284,1781385045000,-209.75565534,0.0002839,7]
[424992289,1781385045000,-302.37022722,0.0002839,7]
[424992287,1781385045000,-190.87098477,0.0002839,7]
[424992286,1781385045000,-313.13074575,0.0002839,7]
[424992301,1781385045000,-329.57909033,0.0002839,7]
[424992292,1781385045000,-348.50224511,0.0002839,7]
[424992294,1781385045000,-334.64444011,0.0002839,2]
[424992291,1781385045000,-334.37659981,0.0002839,7]
[424992290,1781385045000,-161.29307202,0.0002839,7]
[424992295,1781385045000,-359.53744607,0.0002839,7]
[424992298,1781385045000,-176.553443,0.0002839,7]
[424992296,1781385045000,-378.61567351,0.0002839,7]
[424992302,1781385045000,-221.08297522,0.0002839,7]
[424992412,1781386026000,-450.43440417,0.00013838,2]
[424992411,1781386026000,-150.0,0.00013423,2]
[424992415,1781386030000,-150.0,0.00014273,2]
[424992413,1781386030000,-49.56559583,0.00013838,2]
[424992416,1781386030000,-500.0,0.00014274,2]
[424992414,1781386030000,-298.03925892,0.00014166,2]
[424992417,1781386030000,-242.31251548,0.00014274,2]
[424992419,1781386051000,-189.3451994,0.00014274,2]
[424992418,1781386051000,-150.0,0.00014274,2]
[424992437,1781386231000,-500.0,0.00014273,2]
[424992438,1781386231000,-500.0,0.00014273,2]
[424992434,1781386231000,-500.0,0.00014273,2]
[424992436,1781386231000,-500.0,0.00014273,2]
[424992435,1781386231000,-500.0,0.00014273,2]
[424992433,1781386231000,-426.45898155,0.00014273,2]
[424992429,1781386231000,-500.0,0.00014273,2]
[424992431,1781386231000,-500.0,0.00014273,2]
[424992430,1781386231000,-500.0,0.00014273,2]
[424992432,1781386231000,-73.54101845,0.00014273,2]
[424992428,1781386231000,-500.0,0.00014273,2]
[424992424,1781386231000,-152.08943176,0.00014173,2]
[424992425,1781386231000,-496.5,0.00014174,2]
[424992423,1781386231000,-250.0,0.00014,2]
[424992441,1781386231000,-500.0,0.00014273,2]
[424992427,1781386231000,-440.38486124,0.00014273,2]
[424992439,1781386231000,-500.0,0.00014273,2]
[424992426,1781386231000,-151.0,0.00014273,2]
[424992443,1781386231000,-299.99051445,0.00014273,2]
[424992460,1781386231000,-151.0,0.00014274,2]
[424992458,1781386231000,-500.0,0.00014273,2]
[424992456,1781386231000,-500.0,0.00014273,2]
[424992440,1781386231000,-500.0,0.00014273,2]
[424992455,1781386231000,-500.0,0.00014273,2]
[424992452,1781386231000,-500.0,0.00014273,2]
[424992459,1781386231000,-500.0,0.00014273,2]
[424992453,1781386231000,-500.0,0.00014273,2]
[424992454,1781386231000,-500.0,0.00014273,2]
[424992449,1781386231000,-500.0,0.00014273,2]
[424992447,1781386231000,-500.0,0.00014273,2]
[424992450,1781386231000,-500.0,0.00014273,2]
[424992448,1781386231000,-500.0,0.00014273,2]
[424992445,1781386231000,-500.0,0.00014273,2]
[424992446,1781386231000,-500.0,0.00014273,2]
[424992442,1781386231000,-500.0,0.00014273,2]
[424992444,1781386231000,-500.0,0.00014273,2]
[424992451,1781386231000,-500.0,0.00014273,2]
[424992499,1781386232000,-506.0,0.00020952,4]
[424992498,1781386232000,-152.0,0.0002,2]
[424992500,1781386232000,-316.0,0.00021,2]
[424992497,1781386232000,-354.0,0.0002,2]
[424992492,1781386232000,-310.0,0.00018,2]
[424992493,1781386232000,-999.99,0.00018,2]
[424992495,1781386232000,-166.19503965,0.0002,2]
[424992494,1781386232000,-506.0,0.00019476,3]
[424992490,1781386232000,-316.0,0.00018,2]
[424992496,1781386232000,-316.0,0.0002,2]
[424992501,1781386232000,-354.0,0.00021,2]
[424992510,1781386232000,-151.0,0.00021211,2]
[424992504,1781386232000,-151.0,0.00021211,2]
[424992505,1781386232000,-151.0,0.00021211,2]
[424992507,1781386232000,-151.0,0.00021211,2]
[424992508,1781386232000,-151.0,0.00021211,2]
[424992509,1781386232000,-151.0,0.00021211,2]
[424992506,1781386232000,-151.0,0.00021211,2]
[424992491,1781386232000,-151.0,0.00018,2]
[424992511,1781386232000,-151.0,0.00021211,2]
[424992513,1781386232000,-151.0,0.00021211,2]
[424992512,1781386232000,-151.0,0.00021211,2]
[424992503,1781386232000,-657.87343811,0.00021211,2]
[424992486,1781386232000,-150.0,0.00018,2]
[424992480,1781386232000,-3182.0,0.0001764,2]
[424992488,1781386232000,-320.0,0.00018,2]
[424992461,1781386232000,-153.0,0.00014274,2]
[424992463,1781386232000,-151.0,0.00014274,2]
[424992462,1781386232000,-151.0,0.00014274,2]
[424992465,1781386232000,-153.0,0.00014274,2]
[424992467,1781386232000,-600.0,0.00014275,2]
[424992469,1781386232000,-344.12486517,0.0001453,7]
[424992468,1781386232000,-600.0,0.00014275,2]
[424992470,1781386232000,-600.0,0.00014765,2]
[424992472,1781386232000,-318.7898635,0.00014765,2]
[424992471,1781386232000,-600.0,0.00014765,2]
[424992475,1781386232000,-150.0,0.000154,2]
[424992485,1781386232000,-321.0,0.00018,2]
[424992474,1781386232000,-436.22,0.00014817,2]
[424992476,1781386232000,-151.0,0.00016205,2]
[424992478,1781386232000,-151.0,0.00016205,2]
[424992477,1781386232000,-151.0,0.00016205,2]
[424992479,1781386232000,-151.0,0.00016205,2]
[424992514,1781386232000,-151.0,0.00021211,2]
[424992482,1781386232000,-153.0,0.00018,2]
[424992484,1781386232000,-318.0,0.00018,2]
[424992483,1781386232000,-320.0,0.00018,2]
[424992481,1781386232000,-506.0,0.00018,2]
[424992489,1781386232000,-317.0,0.00018,2]
[424992487,1781386232000,-317.0,0.00018,2]
[424992473,1781386232000,-300.0,0.00014765,2]
[424992516,1781386232000,-10000.0,0.00022,10]
[424992502,1781386232000,-152.0,0.00021,2]
[424992518,1781386232000,-354.0,0.00022,2]
[424992548,1781386232000,-150.0,0.00024164,2]
[424992550,1781386232000,-200.0,0.00024248,2]
[424992544,1781386232000,-150.0,0.00023849,2]
[424992547,1781386232000,-354.0,0.00024,2]
[424992552,1781386232000,-5000.0,0.0002432,2]
[424992551,1781386232000,-316.08,0.00024266,2]
[424992549,1781386232000,-156.81644323,0.00024211,2]
[424992553,1781386232000,-166.66,0.00024322,30]
[424992555,1781386232000,-500.0,0.00024619,2]
[424992554,1781386232000,-340.43,0.00024375,2]
[424992556,1781386232000,-175.13,0.00024658,2]
[424992546,1781386232000,-316.0,0.00024,2]
[424992564,1781386232000,-156.81644323,0.00025307,2]
[424992563,1781386232000,-166.66,0.00025304,30]
[424992565,1781386232000,-500.0,0.00025358,2]
[424992557,1781386232000,-1000.0,0.00024658,2]
[424992559,1781386232000,-156.81644323,0.00024759,2]
[424992562,1781386232000,-372.0,0.00025,2]
[424992560,1781386232000,-166.66,0.00024813,30]
[424992515,1781386232000,-150.0,0.00021918,2]
[424992566,1781386232000,-150.0,0.00025373,2]
[424992567,1781386232000,-506.0,0.00025381,8]
[424992568,1781386232000,-1275.0,0.00025553,2]
[424992569,1781386232000,-383.0,0.00025553,2]
[424992558,1781386232000,-156.01674226,0.00024658,2]
[424992545,1781386232000,-506.0,0.00023905,7]
[424992561,1781386232000,-324.0,0.00025,2]
[424992543,1781386232000,-166.66,0.0002383,30]
[424992542,1781386232000,-156.81644323,0.00023663,2]
[424992517,1781386232000,-316.0,0.00022,2]
[424992519,1781386232000,-152.0,0.00022,2]
[424992521,1781386232000,-530.98138164,0.00022407,2]
[424992520,1781386232000,-530.98138166,0.00022407,2]
[424992524,1781386232000,-1429.32427564,0.00022407,2]
[424992523,1781386232000,-1429.32427567,0.00022407,2]
[424992525,1781386232000,-506.0,0.00022429,6]
[424992526,1781386232000,-316.0,0.00023,2]
[424992529,1781386232000,-150.0,0.00023014,2]
[424992531,1781386232000,-151.0,0.00023115,2]
[424992528,1781386232000,-169.0,0.00023,2]
[424992522,1781386232000,-530.98138164,0.00022407,2]
[424992530,1781386232000,-156.81644323,0.00023115,2]
[424992527,1781386232000,-354.0,0.00023,2]
[424992539,1781386232000,-151.77545596,0.00023339,30]
[424992538,1781386232000,-14.88454404,0.00023339,30]
[424992537,1781386232000,-151.0,0.00023335,2]
[424992540,1781386232000,-151.0,0.0002339,2]
[424992536,1781386232000,-151.0,0.0002328,2]
[424992534,1781386232000,-151.0,0.0002317,2]
[424992533,1781386232000,-151.0,0.00023115,2]
[424992532,1781386232000,-167.87521334,0.00023115,2]
[424992535,1781386232000,-151.0,0.00023225,2]
[424992541,1781386232000,-276.47448434,0.00023445,2]
[424992594,1781386233000,-176.71859946,0.00027109,7]
[424992602,1781386233000,-1167.15244999,0.00027297,2]
[424992595,1781386233000,-152.8578742,0.00027109,7]
[424992592,1781386233000,-204.339036,0.00027109,7]
[424992596,1781386233000,-152.98031548,0.00027109,2]
[424992600,1781386233000,-500.0,0.00027296,2]
[424992599,1781386233000,-150.54916247,0.00027109,7]
[424992597,1781386233000,-164.35997535,0.00027109,7]
[424992598,1781386233000,-157.78498536,0.00027109,7]
[424992606,1781386233000,-200.0,0.00027364,2]
[424992604,1781386233000,-228.81436322,0.00027299,2]
[424992605,1781386233000,-880.48347822,0.00027345,2]
[424992611,1781386233000,-485.59088802,0.00027397,2]
[424992607,1781386233000,-224.0,0.00027387,2]
[424992608,1781386233000,-500.0,0.0002739,5]
[424992609,1781386233000,-359.33368519,0.00027396,2]
[424992610,1781386233000,-140.66631481,0.00027396,2]
[424992593,1781386233000,-159.43018825,0.00027109,7]
[424992601,1781386233000,-1332.84755001,0.00027297,2]
[424992589,1781386233000,-506.0,0.00026857,10]
[424992578,1781386233000,-152.0,0.00025985,3]
[424992590,1781386233000,-500.0,0.00026902,2]
[424992612,1781386233000,-500.0,0.00027397,2]
[424992572,1781386233000,-152.0,0.00025556,3]
[424992570,1781386233000,-1228.0,0.00025553,2]
[424992573,1781386233000,-168.0,0.00025675,2]
[424992574,1781386233000,-166.66,0.00025796,30]
[424992571,1781386233000,-6076.0,0.00025553,2]
[424992577,1781386233000,-156.81644324,0.00025855,2]
[424992575,1781386233000,-406.0,0.00025808,2]
[424992576,1781386233000,-151.0,0.00025854,2]
[424992579,1781386233000,-156.01674226,0.00026027,2]
[424992581,1781386233000,-724.35942473,0.00026102,2]
[424992580,1781386233000,-1552.64057527,0.00026102,2]
[424992582,1781386233000,-2281.0,0.00026102,2]
[424992583,1781386233000,-2207.0,0.00026102,2]
[424992584,1781386233000,-500.0,0.00026119,2]
[424992585,1781386233000,-7021.671,0.00026641,14]
[424992588,1781386233000,-1095.0,0.00026847,10]
[424992587,1781386233000,-150.0,0.00026641,2]
[424992586,1781386233000,-390.912,0.00026641,14]
[424992591,1781386233000,-880.48347822,0.00027009,2]
[424992613,1781386233000,-48.74279717,0.00027397,2]
[424992603,1781386233000,-87.26563678,0.00027299,2]
[424992617,1781386233000,-69.36300283,0.00027397,2]
[424992643,1781386233000,-82.61631829,0.000276,2]
[424992641,1781386233000,-196.31,0.0002758,7]
[424992642,1781386233000,-233.38368171,0.000276,2]
[424992639,1781386233000,-2560.98,0.0002755,30]
[424992640,1781386233000,-196.38,0.0002758,7]
[424992646,1781386233000,-182.75796332,0.00027611,30]
[424992645,1781386233000,-196.38,0.00027611,30]
[424992647,1781386233000,-13.55203668,0.00027611,30]
[424992649,1781386233000,-196.31,0.00027641,2]
[424992652,1781386233000,-90.45796332,0.0002768,2]
[424992651,1781386233000,-196.31,0.00027672,7]
[424992648,1781386233000,-196.38,0.00027641,2]
[424992650,1781386233000,-196.38,0.00027672,7]
[424992654,1781386233000,-486.0255149,0.0002768,2]
[424992655,1781386233000,-196.38,0.00027702,30]
[424992653,1781386233000,-304.0,0.0002768,2]
[424992657,1781386233000,-500.0,0.00027709,15]
[424992656,1781386233000,-196.31,0.00027702,30]
[424992614,1781386233000,-451.25720283,0.00027397,2]
[424992637,1781386233000,-2563.8,0.0002755,30]
[424992638,1781386233000,-196.31,0.0002755,2]
[424992644,1781386233000,-309.0,0.000276,2]
[424992636,1781386233000,-196.38,0.0002755,2]
[424992616,1781386233000,-430.63699717,0.00027397,2]
[424992621,1781386233000,-499.02278209,0.00027397,2]
[424992620,1781386233000,-500.0,0.00027397,2]
[424992615,1781386233000,-500.0,0.00027397,2]
[424992622,1781386233000,-0.97721791,0.00027397,2]
[424992635,1781386233000,-500.0,0.000275,7]
[424992619,1781386233000,-500.0,0.00027397,2]
[424992624,1781386233000,-500.0,0.00027397,2]
[424992658,1781386233000,-324.8344428,0.00027711,7]
[424992623,1781386233000,-500.0,0.00027397,2]
[424992618,1781386233000,-500.0,0.00027397,2]
[424992629,1781386233000,-500.0,0.00027397,2]
[424992626,1781386233000,-500.0,0.00027397,2]
[424992628,1781386233000,-500.0,0.00027397,2]
[424992630,1781386233000,-500.0,0.00027397,2]
[424992633,1781386233000,-579.7115723,0.00027397,7]
[424992627,1781386233000,-500.0,0.00027397,2]
[424992632,1781386233000,-3137.0,0.00027397,120]
[424992634,1781386233000,-241.23314845,0.00027397,30]
[424992631,1781386233000,-1500.0,0.00027397,2]
[424992625,1781386233000,-500.0,0.00027397,2]
[424992685,1781386237000,-657.87343808,0.00025553,2]
[424992739,1781386240000,-672.71434559,0.00025553,2]
[424992743,1781386242000,-242.0,0.00021,2]
[424992742,1781386242000,-242.0,0.0002,2]
[424992745,1781386242000,-1050.0,0.00026847,10]
[424992744,1781386242000,-2313.41221633,0.00025553,2]
[424992747,1781386242000,-500.0,0.00027397,2]
[424992746,1781386242000,-500.0,0.00027397,2]
[424992751,1781386242000,-196.23,0.0002755,2]
[424992748,1781386242000,-500.0,0.00027397,2]
[424992750,1781386242000,-150.0,0.00027397,2]
[424992749,1781386242000,-326.09581056,0.00027397,2]
[424992755,1781386242000,-196.23,0.00027641,2]
[424992753,1781386242000,-196.23,0.0002758,7]
[424992754,1781386242000,-196.23,0.00027611,30]
[424992760,1781386242000,-2560.98,0.00027711,7]
[424992756,1781386242000,-411.0,0.00027648,2]
[424992762,1781386242000,-196.31,0.00027733,2]
[424992761,1781386242000,-2559.65,0.00027711,7]
[424992757,1781386242000,-196.23,0.00027672,7]
[424992759,1781386242000,-196.23,0.00027702,30]
[424992752,1781386242000,-2559.65,0.0002755,30]
[424992758,1781386242000,-2212.0,0.00027678,2]
[424992800,1781386243000,-26940.4897375,0.00028296,2]
[424992799,1781386243000,-157.56,0.00028286,2]
[424992796,1781386243000,-278.1729285,0.00028181,14]
[424992794,1781386243000,-196.31,0.00028099,2]
[424992792,1781386243000,-196.31,0.00028038,7]
[424992793,1781386243000,-196.31,0.00028068,30]
[424992797,1781386243000,-2560.98,0.00028194,7]
[424992790,1781386243000,-880.48347822,0.00028016,2]
[424992795,1781386243000,-196.4,0.0002813,7]
[424992798,1781386243000,-2126.83805658,0.00028215,2]
[424992808,1781386243000,-408.67807201,0.00028393,7]
[424992804,1781386243000,-500.0,0.00028356,60]
[424992801,1781386243000,-150.0,0.000283,2]
[424992803,1781386243000,-880.48347822,0.00028352,2]
[424992791,1781386243000,-2560.98,0.00028033,30]
[424992807,1781386243000,-1440.73,0.00028392,120]
[424992805,1781386243000,-18098.78,0.0002839,10]
[424992806,1781386243000,-500.0,0.00028392,10]
[424992810,1781386243000,-198.31613897,0.00028393,7]
[424992811,1781386243000,-165.42152013,0.00028393,7]
[424992812,1781386243000,-163.85398128,0.00028393,7]
[424992809,1781386243000,-182.00077832,0.00028393,7]
[424992802,1781386243000,-506.0,0.00028333,11]
[424992789,1781386243000,-196.31,0.00028007,2]
[424992783,1781386243000,-196.31,0.00027946,7]